bitfinex/quotes_BTCUSD_20240823
["timestamp","ask_amount","ask_price","bid_price","bid_amount"]
[1724426498746,1.63522709,61412.0,61401.0,0.000822]
[1724426499128,1.63422709,61412.0,61401.0,0.000822]
[1724426499305,1.20855809,61412.0,61401.0,0.000822]
[1724426499507,0.00898311,61412.0,61408.0,0.1721]
[1724426499682,0.17181711,61412.0,61411.0,0.00897164]
[1724426500056,0.01498311,61412.0,61411.0,0.00897164]
[1724426500169,0.19181711,61412.0,61411.0,0.00897164]
[1724426500369,0.01498311,61412.0,61411.0,0.00897164]
[1724426500615,0.18981711,61412.0,61411.0,0.00897164]
[1724426500824,0.01298311,61412.0,61411.0,0.17180864]
[1724426501026,0.01298311,61412.0,61411.0,0.00897164]
[1724426501235,0.02398311,61412.0,61411.0,0.70538264]
[1724426501640,0.01198311,61412.0,61411.0,0.21687164]
[1724426501845,0.01898311,61412.0,61411.0,0.37970864]
[1724426502047,0.01898311,61412.0,61411.0,0.38488614]
[1724426502248,0.01898311,61412.0,61411.0,0.71056014]
[1724426503165,0.00798311,61412.0,61411.0,0.22204914]
[1724426503366,0.00198311,61412.0,61411.0,0.22203914]
[1724426503482,0.00298311,61412.0,61411.0,0.22403914]
[1724426503676,0.00198311,61412.0,61411.0,0.22403914]
[1724426503920,0.00098311,61412.0,61411.0,0.21686164]
[1724426504130,0.00298311,61412.0,61411.0,0.21886164]
[1724426504420,0.81715511,61412.0,61411.0,0.00896164]
[1724426504619,0.81615511,61412.0,61411.0,0.001013]
[1724426504825,1.14282411,61412.0,61411.0,0.003013]
[1724426505040,1.14382411,61412.0,61411.0,0.003013]
[1724426505243,1.14382411,61412.0,61411.0,0.001013]
[1724426505244,1.14182411,61412.0,61411.0,0.001013]
[1724426505445,1.30682709,61412.0,61411.0,0.001013]
[1724426505670,1.30882709,61412.0,61411.0,0.001013]
[1724426506078,1.30682709,61412.0,61411.0,0.001013]
[1724426506413,1.30482709,61412.0,61411.0,0.001013]
[1724426506903,1.30582709,61412.0,61411.0,0.001013]
[1724426507066,1.30482709,61412.0,61411.0,0.001013]
[1724426507245,1.31482709,61412.0,61411.0,0.001013]
[1724426507450,1.32482709,61412.0,61411.0,0.001013]
[1724426507864,1.31482709,61412.0,61411.0,0.001013]
[1724426508075,1.32482709,61412.0,61411.0,0.001013]
[1724426508276,1.31482709,61412.0,61411.0,0.001013]
[1724426508476,1.15082411,61412.0,61411.0,0.001013]
[1724426508682,1.16082411,61412.0,61411.0,0.001013]
[1724426509102,0.83515511,61412.0,61411.0,0.001013]
[1724426509536,0.82515511,61412.0,61411.0,0.001013]
[1724426510202,0.01698311,61412.0,61411.0,0.001013]
[1724426510414,0.01698311,61412.0,61411.0,0.18576164]
[1724426510415,0.00698311,61412.0,61411.0,0.18576164]
[1724426510609,0.00898311,61412.0,61411.0,0.666324]
[1724426510814,0.00898311,61412.0,61411.0,0.90207264]
[1724426511000,0.00898311,61412.0,61411.0,1.06607562]
[1724426511205,0.00698311,61412.0,61411.0,1.06607562]
[1724426511412,0.00698311,61412.0,61411.0,1.39174962]
[1724426511626,0.00198311,61412.0,61411.0,1.49074962]
[1724426511839,0.00198311,61412.0,61411.0,1.49174962]
[1724426512044,0.00198311,61412.0,61411.0,1.49695964]
[1724426512523,0.00139518,61412.0,61411.0,1.49594664]
[1724426512937,0.00230048,61412.0,61411.0,1.49594664]
[1724426513595,0.00130048,61412.0,61411.0,1.82162064]
[1724426513814,0.00230048,61412.0,61411.0,1.82362064]
[1724426513939,0.00230048,61412.0,61411.0,1.82062064]
[1724426514141,0.001,61412.0,61411.0,1.82562064]
[1724426514499,0.0009053,61432.0,61431.0,0.544284]
[1724426514731,0.0009053,61432.0,61431.0,0.3815]
[1724426514904,0.0009053,61432.0,61431.0,0.55201226]
[1724426515201,0.0009053,61432.0,61431.0,0.87758026]
[1724426515445,0.0009053,61432.0,61431.0,1.36715124]
[1724426515783,0.0009053,61432.0,61431.0,1.36815124]
[1724426516916,0.0009053,61432.0,61431.0,2.15004419]
[1724426517112,0.0009053,61432.0,61431.0,1.82347619]
[1724426517495,0.0009053,61432.0,61431.0,1.46815124]
[1724426517921,0.0009053,61432.0,61431.0,1.46715124]
[1724426518125,0.0009053,61432.0,61431.0,0.82101524]
[1724426518513,0.0009053,61432.0,61431.0,0.81601524]
[1724426518713,0.0019053,61432.0,61431.0,0.50022826]
[1724426519311,0.0019053,61432.0,61431.0,0.50546244]
[1724426519757,0.0019053,61432.0,61431.0,0.66824644]
[1724426519963,0.0019053,61432.0,61431.0,0.67624644]
[1724426520170,0.0019053,61432.0,61431.0,1.00181444]
[1724426520372,0.0019053,61432.0,61431.0,0.67624644]
[1724426521914,0.0019053,61432.0,61431.0,1.49138542]
[1724426522119,0.0019053,61432.0,61431.0,2.17227837]
[1724426522324,0.49229154,61468.0,61443.0,1.561764]
[1724426522454,0.49229154,61468.0,61443.0,2.95816698]
[1724426522658,0.325385,61466.0,61443.0,3.39706512]
[1724426522881,0.162697,61464.0,61443.0,3.39706512]
[1724426523093,0.162693,61466.0,61443.0,3.39326707]
[1724426523263,0.162699,61464.0,61443.0,3.39706511]
[1724426523465,0.162699,61464.0,61443.0,3.39406511]
[1724426523657,0.162699,61464.0,61443.0,3.39506511]
[1724426523901,0.325386,61466.0,61443.0,3.39406511]
[1724426523902,0.162702,61462.0,61443.0,3.39406511]
[1724426524113,0.488079,61466.0,61443.0,3.40806511]
[1724426524283,0.49229154,61468.0,61443.0,3.40806511]
[1724426524284,0.49229154,61468.0,61443.0,3.41106511]
[1724426524461,0.49229154,61468.0,61443.0,3.41306511]
[1724426524660,0.49229154,61468.0,61443.0,3.39906511]
[1724426524861,0.49229154,61468.0,61461.0,0.325405]
[1724426525150,0.49229154,61468.0,61467.0,0.162688]
[1724426525334,0.00090421,61471.0,61463.0,0.325397]
[1724426525483,0.00090421,61471.0,61465.0,0.162693]
[1724426525687,0.16358321,61471.0,61465.0,0.162693]
[1724426526087,0.162681,61470.0,61463.0,0.16400298]
[1724426526323,1.365519,61467.0,61466.0,0.01101438]
[1724426526672,1.365519,61467.0,61447.0,0.325481]
[1724426526673,0.325436,61456.0,61447.0,0.325481]
[1724426526875,0.39070298,61467.0,61448.0,0.16725758]
[1724426526876,0.325407,61462.0,61448.0,0.16725758]
[1724426527078,0.2267,61467.0,61449.0,0.224]
[1724426527288,0.2267,61467.0,61461.0,0.004]
[1724426527480,0.162702,61462.0,61461.0,0.004]
[1724426527601,0.32539,61465.0,61457.0,0.162714]
[1724426527602,0.162699,61463.0,61457.0,0.162714]
[1724426527970,0.32539,61465.0,61453.0,0.32545]
[1724426527971,0.162705,61461.0,61458.0,0.00743096]
[1724426528119,0.325399,61463.0,61458.0,0.00743096]
[1724426528326,0.2267,61467.0,61452.0,0.325453]
[1724426528527,0.162702,61462.0,61461.0,0.002]
[1724426528732,0.2267,61467.0,61461.0,0.002]
[1724426528934,0.2267,61467.0,61461.0,0.00624705]
[1724426529234,0.1627,61463.0,61462.0,0.00738694]
[1724426529632,0.162702,61462.0,61461.0,0.001]
[1724426529833,0.162701,61463.0,61458.0,0.17203942]
[1724426530038,0.325394,61464.0,61458.0,0.004]
[1724426530261,0.325394,61464.0,61459.0,0.00741995]
[1724426530462,0.162703,61462.0,61459.0,0.00741995]
[1724426530800,0.1627,61463.0,61460.0,0.1751]
[1724426531004,0.1627,61463.0,61460.0,0.18250895]
[1724426531319,0.2276,61472.0,61460.0,0.18250895]
[1724426531541,0.162681,61470.0,61461.0,0.38770298]
[1724426531744,0.325337,61475.0,61461.0,0.38770298]
[1724426531745,0.16358421,61471.0,61464.0,0.162695]
[1724426531981,0.162681,61470.0,61465.0,0.01103089]
[1724426532185,0.00090421,61471.0,61465.0,0.01103089]
[1724426532356,0.162682,61470.0,61465.0,0.01103089]
[1724426532559,0.00090421,61471.0,61465.0,0.00734292]
[1724426532560,0.32626021,61471.0,61465.0,0.00734292]
[1724426532760,0.16358321,61471.0,61465.0,0.162693]
[1724426532964,0.16358321,61471.0,61466.0,0.00734292]
[1724426533189,0.16358321,61471.0,61466.0,0.01099787]
[1724426533391,0.162681,61470.0,61466.0,0.01099787]
[1724426533591,0.325363,61470.0,61466.0,0.00733192]
[1724426533855,0.162683,61470.0,61466.0,0.00733192]
[1724426534057,0.32626221,61471.0,61464.0,0.162695]
[1724426534058,0.162683,61469.0,61464.0,0.162695]
[1724426534253,0.32626221,61471.0,61467.0,0.00733192]
[1724426534480,0.162682,61470.0,61463.0,0.325398]
[1724426534656,0.00090421,61471.0,61468.0,0.01098137]
[1724426535006,0.00090421,61471.0,61469.0,0.01096487]
[1724426535305,0.16358221,61471.0,61469.0,0.01096487]
[1724426535529,0.00090421,61471.0,61467.0,0.162687]
[1724426535686,0.48893821,61471.0,61470.0,0.01094837]
[1724426535887,0.32626021,61471.0,61465.0,0.162693]
[1724426536093,0.32626021,61471.0,61463.0,0.49467302]
[1724426536094,0.00090421,61471.0,61463.0,0.16927502]
[1724426536273,0.00090421,61471.0,61470.0,0.488041]
[1724426536481,0.00090421,61471.0,61470.0,0.813402]
[1724426536697,0.00090421,61471.0,61470.0,0.49898937]
[1724426536970,0.00090421,61471.0,61470.0,0.17362837]
[1724426537907,0.00090421,61471.0,61470.0,0.49898937]
[1724426538674,0.00090421,61471.0,61470.0,0.50423435]
[1724426538807,0.00090421,61471.0,61470.0,0.17887335]
[1724426539482,0.00090421,61471.0,61470.0,0.01619335]
[1724426539644,0.00090421,61471.0,61470.0,0.01094837]
[1724426540045,0.00090421,61471.0,61467.0,0.162688]
[1724426540227,0.00090421,61471.0,61468.0,0.162685]
[1724426540428,0.00090421,61471.0,61470.0,0.16268]
[1724426540849,0.00090421,61471.0,61470.0,0.49898937]
[1724426541682,0.00090421,61471.0,61470.0,0.17362837]
[1724426542244,0.00090421,61471.0,61470.0,0.01294837]
[1724426542450,0.37398221,61471.0,61470.0,0.01294837]
[1724426542682,0.69933821,61471.0,61470.0,0.01294837]
[1724426542881,0.69933821,61471.0,61470.0,0.002]
[1724426543092,1.02469421,61471.0,61470.0,0.002]
[1724426543525,0.69933821,61471.0,61470.0,0.002]
[1724426544340,1.02469421,61471.0,61470.0,0.002]
[1724426544891,1.02469421,61471.0,61458.0,0.325421]
[1724426544892,0.325374,61468.0,61464.0,0.00533337]
[1724426545079,0.162695,61465.0,61462.0,0.1]
[1724426545287,0.162695,61465.0,61460.0,0.162707]
[1724426545288,0.162701,61463.0,61459.0,0.16400298]
[1724426545488,0.325397,61464.0,61457.0,0.162714]
[1724426545702,0.325397,61464.0,61456.0,0.00525259]
[1724426545703,0.21130421,61471.0,61458.0,0.16400298]
[1724426545908,0.162703,61462.0,61458.0,0.16400298]
[1724426546880,0.325386,61466.0,61460.0,0.162706]
[1724426547082,0.162691,61466.0,61461.0,0.162704]
[1724426547296,0.00090421,61471.0,61465.0,0.325387]
[1724426547623,0.00090421,61471.0,61463.0,0.2269]
[1724426547624,0.162683,61469.0,61466.0,0.16400298]
[1724426547861,0.325368,61469.0,61466.0,0.16400298]
[1724426548065,0.162687,61468.0,61466.0,0.16400298]
[1724426548269,0.325362,61470.0,61464.0,0.162696]
[1724426548471,0.00090421,61471.0,61461.0,0.002]
[1724426548689,0.162691,61466.0,61465.0,0.002]
[1724426549013,0.162691,61467.0,61461.0,0.16801619]
[1724426549225,0.532663,61470.0,61461.0,0.162704]
[1724426549226,0.162691,61466.0,61461.0,0.162704]
[1724426549430,0.162689,61467.0,61460.0,0.325414]
[1724426549647,0.162689,61467.0,61462.0,0.162701]
[1724426549871,0.162689,61467.0,61463.0,0.162699]
[1724426550257,0.532663,61470.0,61461.0,0.325407]
[1724426550518,0.00090421,61471.0,61462.0,0.16400298]
[1724426550701,0.00090421,61471.0,61468.0,0.325367]
[1724426550886,0.00090421,61471.0,61469.0,0.339581]
[1724426551107,0.00090421,61471.0,61469.0,0.1769]
[1724426551305,0.00090421,61471.0,61466.0,0.003]
[1724426551306,0.16358221,61471.0,61466.0,0.162691]
[1724426551445,0.16358221,61471.0,61467.0,0.162688]
[1724426551646,0.16358221,61471.0,61466.0,0.16400298]
[1724426551647,0.00090421,61471.0,61466.0,0.16400298]
[1724426551872,0.00090421,61471.0,61468.0,0.162686]
[1724426552072,0.00090421,61471.0,61470.0,0.16268]
[1724426552443,0.00090421,61471.0,61470.0,0.488041]
[1724426553487,0.00090421,61471.0,61470.0,0.813402]
[1724426553655,0.00090421,61471.0,61470.0,0.488041]
[1724426553864,0.00090421,61471.0,61470.0,0.97740498]
[1724426554232,0.00090421,61471.0,61470.0,0.65304398]
[1724426554441,0.00090421,61471.0,61470.0,0.97840498]
[1724426554669,0.00090421,61471.0,61470.0,0.65304398]
[1724426554867,0.00090421,61471.0,61470.0,0.97940498]
[1724426555131,0.00090421,61471.0,61470.0,0.97740498]
[1724426555283,0.00090421,61471.0,61470.0,0.66404398]
[1724426555496,0.00090421,61471.0,61470.0,0.67804398]
[1724426556088,0.00090421,61471.0,61470.0,1.00340498]
[1724426556288,0.00090421,61471.0,61470.0,0.67804398]
[1724426556724,0.00090421,61471.0,61470.0,1.00340498]
[1724426556900,0.00090421,61471.0,61470.0,0.67804398]
[1724426557084,0.00090421,61471.0,61470.0,1.00340498]
[1724426557747,0.00090421,61471.0,61470.0,1.10340498]
[1724426557961,0.00090421,61471.0,61470.0,1.16894398]
[1724426558164,0.00090421,61471.0,61470.0,0.3011]
[1724426558365,0.00090421,61471.0,61470.0,0.112]
[1724426558496,0.00090421,61471.0,61470.0,0.28868]
[1724426558900,0.00090421,61471.0,61470.0,0.27468]
[1724426559267,0.00090421,61471.0,61470.0,0.28868]
[1724426559437,0.00090421,61471.0,61470.0,0.012]
[1724426559615,0.65161621,61471.0,61470.0,0.012]
[1724426559819,0.81429421,61471.0,61470.0,0.012]
[1724426560022,0.48893821,61471.0,61470.0,0.012]
[1724426560222,0.16358221,61471.0,61470.0,0.012]
[1724426560612,0.00090421,61471.0,61470.0,0.02494837]
[1724426560819,0.00090421,61471.0,61470.0,0.02994837]
[1724426561063,0.00090421,61471.0,61470.0,0.01594837]
[1724426561471,0.00090421,61471.0,61470.0,0.01794837]
[1724426561670,0.00090421,61471.0,61470.0,0.17862837]
[1724426562008,0.00090421,61471.0,61470.0,0.02294837]
[1724426562344,0.00090421,61471.0,61470.0,0.34963135]
[1724426562545,0.00090421,61471.0,61470.0,1.17490674]
[1724426562745,0.00090421,61471.0,61470.0,1.17165335]
[1724426562975,0.00090421,61471.0,61470.0,1.49701435]
[1724426563392,0.00090421,61471.0,61470.0,2.4100003]
[1724426563596,0.009053,61474.0,61473.0,1.204665]
[1724426563800,0.2058,61498.0,61491.0,0.162622]
[1724426564159,0.2058,61498.0,61485.0,0.2083]
[1724426564382,0.0002,61499.0,61493.0,1.69064298]
[1724426564590,0.0002,61499.0,61493.0,1.81364298]
[1724426564791,0.0002,61499.0,61493.0,1.83974207]
[1724426564963,0.0002,61499.0,61493.0,1.79064298]
[1724426565199,0.0002,61499.0,61493.0,1.83974207]
[1724426565421,0.0002,61499.0,61493.0,1.51450207]
[1724426565626,0.0002,61499.0,61493.0,1.26510298]
[1724426565847,0.0002,61499.0,61493.0,1.27910298]
[1724426566046,0.0002,61499.0,61493.0,0.122]
[1724426566262,0.496904,61494.0,61493.0,0.008]
[1724426566469,0.882704,61494.0,61493.0,0.008]
[1724426566842,0.882704,61494.0,61488.0,0.0051989]
[1724426566843,0.16263,61489.0,61488.0,0.0051989]
[1724426567046,0.720087,61494.0,61488.0,0.0051989]
[1724426567047,0.162626,61491.0,61488.0,0.0051989]
[1724426567246,0.720087,61494.0,61488.0,0.0158503]
[1724426567469,0.325243,61493.0,61481.0,0.1799]
[1724426567672,0.162626,61491.0,61488.0,0.0106514]
[1724426567800,0.162626,61491.0,61484.0,0.162642]
[1724426568007,0.325246,61492.0,61488.0,0.0106514]
[1724426568234,0.162629,61490.0,61482.0,0.16400298]
[1724426568433,0.162629,61490.0,61488.0,0.0106514]
[1724426568634,0.162629,61490.0,61484.0,0.162642]
[1724426568912,0.162629,61490.0,61488.0,0.0106514]
[1724426569110,0.394853,61494.0,61488.0,0.0106514]
[1724426569111,0.487891,61489.0,61488.0,0.0106514]
[1724426569314,0.2153,61482.0,61468.0,0.1665]
[1724426569539,0.2153,61482.0,61472.0,0.162674]
[1724426569740,0.2153,61482.0,61469.0,0.01096487]
[1724426569741,0.162665,61476.0,61469.0,0.01096487]
[1724426569938,0.162661,61478.0,61473.0,0.01089886]
[1724426570113,0.162671,61474.0,61468.0,0.33448416]
[1724426570314,0.2153,61482.0,61469.0,0.325364]
[1724426570315,0.325316,61479.0,61469.0,0.325364]
[1724426570516,0.162665,61476.0,61470.0,0.16268]
[1724426571126,0.32532,61478.0,61469.0,0.325364]
[1724426571127,0.162662,61477.0,61471.0,0.162678]
[1724426571327,0.162666,61476.0,61469.0,0.325364]
[1724426571564,0.162666,61476.0,61472.0,0.01091536]
[1724426571765,0.487981,61478.0,61472.0,0.01091536]
[1724426572006,0.32532,61478.0,61472.0,0.01091536]
[1724426572161,0.162664,61477.0,61472.0,0.01091536]
[1724426572367,0.325309,61480.0,61471.0,0.014]
[1724426572571,0.325309,61480.0,61472.0,0.01091536]
[1724426572572,0.32532,61478.0,61472.0,0.01091536]
[1724426572782,0.162666,61476.0,61470.0,0.176679]
[1724426572950,0.162666,61476.0,61471.0,0.01093186]
[1724426573309,0.162666,61476.0,61471.0,0.17360886]
[1724426573474,0.162661,61478.0,61472.0,0.162675]
[1724426573675,0.325309,61480.0,61471.0,0.01093186]
[1724426573676,0.325311,61480.0,61471.0,0.01093186]
[1724426573854,0.16266,61478.0,61473.0,0.17357086]
[1724426574055,0.16266,61478.0,61473.0,0.162672]
[1724426574257,0.325304,61481.0,61474.0,0.01088236]
[1724426574460,0.162658,61479.0,61474.0,0.01088236]
[1724426574826,0.162658,61479.0,61473.0,0.162672]
[1724426574977,0.162658,61479.0,61475.0,0.01086586]
[1724426575178,0.162658,61479.0,61474.0,0.16267]
[1724426575381,0.325304,61481.0,61475.0,0.01086586]
[1724426575581,0.162664,61477.0,61475.0,0.01086586]
[1724426575794,0.325313,61480.0,61474.0,0.009]
[1724426575954,0.162665,61476.0,61475.0,0.01086586]
[1724426576155,0.488002,61475.0,61474.0,0.009]
[1724426576397,0.376867,61475.0,61474.0,0.009]
[1724426576608,0.16267,61474.0,61473.0,0.014]
[1724426576832,0.48801,61474.0,61473.0,0.014]
[1724426576968,0.162675,61472.0,61471.0,0.000822]
[1724426577171,0.1745,61478.0,61471.0,0.000822]
[1724426577172,0.2139,61481.0,61474.0,0.013]
[1724426577352,0.162657,61479.0,61474.0,0.013]
[1724426577559,0.162657,61479.0,61474.0,0.162669]
[1724426577764,0.2139,61481.0,61474.0,0.325338]
[1724426577960,0.2139,61481.0,61480.0,0.162654]
[1724426578220,0.1795,61485.0,61473.0,0.003]
[1724426578221,0.22,61485.0,61478.0,0.162657]
[1724426578439,0.162644,61484.0,61479.0,0.162654]
[1724426578645,0.002,61479.0,61478.0,0.162659]
[1724426578853,0.002,61479.0,61478.0,1.15919998]
[1724426579918,0.162634,61488.0,61483.0,0.162644]
[1724426580316,0.003,61485.0,61484.0,0.487929]
[1724426580757,0.2133,61490.0,61487.0,0.162635]
[1724426580955,0.2133,61490.0,61489.0,0.16263]
[1724426581396,0.2133,61490.0,61485.0,0.32528]
[1724426581597,0.004,61488.0,61487.0,0.325272]
[1724426581799,0.004,61488.0,61487.0,1.30245498]
[1724426582021,0.004,61488.0,61487.0,1.40245498]
[1724426582453,0.004,61488.0,61487.0,1.57535498]
[1724426582716,0.004,61488.0,61487.0,1.79535498]
[1724426582914,0.004,61488.0,61487.0,2.17822698]
[1724426583118,0.009053,61494.0,61493.0,1.86968]
[1724426583271,0.009053,61494.0,61493.0,2.51200793]
[1724426583669,0.009053,61494.0,61493.0,2.51000793]
[1724426583918,0.009053,61494.0,61493.0,2.51200793]
[1724426584126,0.009053,61494.0,61493.0,2.51000793]
[1724426584330,0.009053,61494.0,61493.0,1.15496298]
[1724426584581,0.009053,61494.0,61493.0,0.1791]
[1724426584800,0.009053,61494.0,61493.0,0.99358298]
[1724426585006,0.009053,61494.0,61493.0,2.17416793]
[1724426585176,0.009053,61494.0,61493.0,2.49074814]
[1724426585378,0.009053,61494.0,61493.0,2.52074814]
[1724426585741,0.009053,61494.0,61493.0,2.52674814]
[1724426586183,0.009053,61494.0,61493.0,2.52774814]
[1724426586792,0.009053,61494.0,61493.0,2.52974814]
[1724426586987,0.009053,61494.0,61493.0,2.57523164]
[1724426587423,0.009053,61494.0,61493.0,2.23599164]
[1724426587719,0.009053,61494.0,61493.0,2.22199164]
[1724426587918,0.009053,61494.0,61493.0,2.23599164]
[1724426588553,0.009053,61494.0,61493.0,2.22199164]
[1724426589023,0.009053,61494.0,61493.0,1.84618319]
[1724426589610,0.009053,61494.0,61493.0,0.01934021]
[1724426589802,0.009053,61494.0,61493.0,0.03334021]
[1724426590136,0.009053,61494.0,61493.0,0.028]
[1724426590137,0.887904,61494.0,61493.0,0.028]
[1724426590265,0.887904,61494.0,61493.0,0.014]
[1724426590462,0.400053,61494.0,61493.0,0.014]
[1724426590725,0.56267,61494.0,61493.0,0.028]
[1724426590979,0.56267,61494.0,61493.0,0.014]
[1724426590980,0.887904,61494.0,61493.0,0.014]
[1724426591261,0.887904,61494.0,61479.0,0.32531]
[1724426591262,0.487875,61491.0,61490.0,0.0053662]
[1724426591389,0.813125,61491.0,61490.0,0.0053662]
[1724426591599,0.325288,61484.0,61476.0,0.162663]
[1724426591801,0.325288,61484.0,61477.0,0.01083286]
[1724426591802,0.325319,61478.0,61477.0,0.01083286]
[1724426592010,0.2156,61484.0,61474.0,0.00610484]
[1724426592011,0.162666,61476.0,61474.0,0.000822]
[1724426592226,0.325303,61481.0,61474.0,0.000822]
[1724426592425,0.2156,61484.0,61475.0,0.01086586]
[1724426592634,0.2156,61493.0,61477.0,0.2204]
[1724426592994,0.2156,61493.0,61478.0,0.33885564]
[1724426593196,0.2156,61493.0,61478.0,0.349672]
[1724426593526,0.2156,61493.0,61492.0,0.162622]
[1724426593724,0.2156,61493.0,61490.0,0.162626]
[1724426593879,0.2156,61493.0,61490.0,0.16400298]
[1724426594074,0.2156,61493.0,61490.0,0.32662898]
[1724426594283,0.2156,61493.0,61491.0,0.162625]
[1724426594468,0.009053,61494.0,61490.0,0.16400298]
[1724426594469,0.009053,61494.0,61492.0,0.162622]
[1724426594824,0.009053,61494.0,61493.0,0.16262]
[1724426594963,0.009053,61494.0,61493.0,0.9803551]
[1724426595166,0.009053,61494.0,61493.0,1.1492551]
[1724426595883,0.009053,61494.0,61493.0,1.4744951]
[1724426596078,0.009053,61494.0,61493.0,1.5974951]
[1724426596528,0.009053,61494.0,61493.0,1.59424298]
[1724426596901,0.009053,61494.0,61493.0,1.60124298]
[1724426597339,0.009053,61494.0,61493.0,1.26000298]
[1724426597999,0.009053,61494.0,61493.0,1.27400298]
[1724426598336,0.009053,61494.0,61493.0,1.24600298]
[1724426599549,0.009053,61494.0,61493.0,0.26400298]
[1724426599913,0.009053,61494.0,61493.0,0.29200298]
[1724426600236,0.227253,61494.0,61493.0,0.29200298]
[1724426600411,0.227253,61494.0,61493.0,0.114]
[1724426600412,0.38987,61494.0,61493.0,0.114]
[1724426600584,0.162623,61492.0,61490.0,0.00522705]
[1724426600790,0.16262,61493.0,61489.0,0.1]
[1724426601018,0.227253,61494.0,61480.0,1.567306]
[1724426601167,0.32524,61493.0,61484.0,0.162643]
[1724426601367,0.162634,61488.0,61484.0,0.16400298]
[1724426601548,0.32526,61490.0,61485.0,0.01070088]
[1724426601755,0.227253,61494.0,61481.0,0.00516734]
[1724426601756,0.162638,61487.0,61481.0,0.00516734]
[1724426601956,0.162632,61489.0,61484.0,0.162643]
[1724426602154,0.162634,61488.0,61482.0,0.50005035]
[1724426602373,0.325246,61492.0,61483.0,0.1]
[1724426602574,0.227253,61494.0,61484.0,0.01071738]
[1724426602575,0.162639,61486.0,61484.0,0.01071738]
[1724426602878,0.162641,61485.0,61484.0,0.01071738]
[1724426603075,0.693923,61485.0,61484.0,0.01071738]
[1724426603371,0.162651,61481.0,61480.0,1.24722396]
[1724426603579,0.206,61485.0,61480.0,1.24722396]
[1724426603772,0.162626,61491.0,61484.0,0.026]
[1724426603981,0.162626,61491.0,61486.0,0.162637]
[1724426604182,0.16263,61489.0,61484.0,0.32664398]
[1724426604326,0.162633,61488.0,61484.0,0.17100298]
[1724426604521,0.162633,61488.0,61484.0,0.16400298]
[1724426604750,0.325252,61491.0,61484.0,0.32664398]
[1724426605148,0.16263,61489.0,61484.0,0.32664398]
[1724426605528,0.325252,61491.0,61485.0,0.16264]
[1724426605723,0.162629,61490.0,61485.0,0.16264]
[1724426606311,0.162629,61490.0,61484.0,0.16400298]
[1724426606312,0.206,61493.0,61484.0,0.16725552]
[1724426606487,0.206,61493.0,61486.0,0.16400298]
[1724426606642,0.206,61493.0,61490.0,0.162626]
[1724426606826,0.009053,61494.0,61491.0,0.162623]
[1724426607022,0.162622,61493.0,61487.0,0.487904]
[1724426607228,0.162622,61493.0,61485.0,0.005]
[1724426607229,0.16262,61493.0,61485.0,0.005]
[1724426607442,0.16262,61493.0,61489.0,0.16263]
[1724426607852,0.16262,61493.0,61485.0,0.002]
[1724426607853,0.2142,61493.0,61485.0,0.002]
[1724426608052,0.2142,61493.0,61484.0,0.262643]
[1724426608292,0.162632,61489.0,61484.0,0.1]
[1724426608505,0.162632,61489.0,61484.0,0.262643]
[1724426608951,0.162638,61486.0,61484.0,0.1]
[1724426609124,0.325266,61488.0,61482.0,0.162648]
[1724426609298,0.162636,61487.0,61482.0,0.32665098]
[1724426609699,0.32526,61490.0,61480.0,0.00522396]
[1724426609908,0.325288,61484.0,61478.0,0.162659]
[1724426610098,0.162648,61483.0,61478.0,0.162659]
[1724426610300,0.162648,61483.0,61476.0,0.43048283]
[1724426610502,0.162649,61482.0,61478.0,0.162658]
[1724426610703,0.325289,61484.0,61477.0,0.26400298]
[1724426611007,0.162649,61482.0,61480.0,0.005]
[1724426611182,0.16265,61482.0,61480.0,0.005]
[1724426611936,0.487954,61481.0,61480.0,0.005]
[1724426612251,0.487954,61481.0,61478.0,0.009]
[1724426612252,0.162657,61479.0,61478.0,0.009]
[1724426612466,0.162657,61479.0,61478.0,0.018]
[1724426612665,0.2165,61480.0,61478.0,0.018]
[1724426612928,0.379155,61480.0,61478.0,0.01087757]
[1724426613131,0.379155,61480.0,61478.0,0.0011241]
[1724426613463,0.379155,61480.0,61478.0,0.0131241]
[1724426613808,0.2165,61480.0,61478.0,0.012]
[1724426613947,0.2165,61480.0,61477.0,0.170661]
[1724426614155,0.2263,61487.0,61477.0,0.17200298]
[1724426614373,0.162642,61485.0,61480.0,0.162653]
[1724426614575,0.2263,61487.0,61479.0,0.325313]
[1724426614789,0.162639,61486.0,61481.0,0.16265]
[1724426615004,0.162639,61486.0,61482.0,0.162648]
[1724426615177,0.2263,61487.0,61483.0,0.162646]
[1724426615483,0.2263,61487.0,61481.0,0.325301]
[1724426615774,0.16264,61486.0,61482.0,0.162648]
[1724426615976,0.2263,61487.0,61482.0,0.162648]
[1724426616224,0.2263,61487.0,61484.0,0.00058737]
[1724426616430,0.162641,61485.0,61484.0,0.00058737]
[1724426616871,0.162641,61486.0,61484.0,0.00058737]
[1724426617278,0.2263,61487.0,61484.0,0.00058737]
[1724426617279,0.162641,61485.0,61484.0,0.00058737]
[1724426617495,0.2263,61487.0,61484.0,0.00458737]
[1724426617829,0.2263,61487.0,61484.0,0.00658737]
[1724426618053,0.388936,61487.0,61484.0,0.00658737]
[1724426618230,0.388936,61487.0,61484.0,0.01158737]
[1724426618458,0.388936,61487.0,61484.0,0.01688603]
[1724426618700,0.388936,61487.0,61484.0,0.01188603]
[1724426618886,0.388936,61487.0,61484.0,0.01588603]
[1724426619093,0.162641,61485.0,61484.0,0.01588603]
[1724426619230,0.162638,61486.0,61484.0,0.00988603]
[1724426619433,1.70258998,61485.0,61484.0,0.00458737]
[1724426619640,1.70258998,61485.0,61484.0,0.00858737]
[1724426619850,1.213305,61485.0,61484.0,0.00858737]
[1724426620049,1.213305,61485.0,61484.0,0.00458737]
[1724426620247,1.538587,61485.0,61484.0,0.00458737]
[1724426620483,1.213305,61485.0,61484.0,0.00958737]
[1724426620697,1.213305,61485.0,61484.0,0.00558737]
[1724426621006,1.538587,61485.0,61484.0,0.00558737]
[1724426621195,1.546587,61485.0,61484.0,0.00658737]
[1724426621545,1.213305,61485.0,61484.0,0.00558737]